Cogmind - Beta 15 @@@ ROGUE MODE // 2025.05.26 @ 05:31:23 Player: puppuppit Result: Destroyed by G-67 Veteran with Plasma Rifle Performance ------------- Evolutions (5) 2500 Regions Visited (4) 800 Robots Destroyed (114) 570 Value Destroyed (4349) 4349 Prototype IDs (23) 460 Alien Tech Used (0) 0 Bonus (4364) 4364 TOTAL SCORE: 13043 Bonus ------- Triggered High Security 500 High Alert Combat Kills 2233 Follower Combat Kills 844 Registered with UFD 300 Met Optimus in HQ 500 Friendly Fire -13 Cogmind --------- Core Integrity 0/1000 Matter 270/300 Energy 100/100 System Corruption 28% Temperature Cool (61) Movement Walking (120) Location -5/Factory Parts ------- > --- POWER (1) -------- (None) > --- PROPULSION (6) --- Carbon-fiber Leg High-density Centrium Leg > --- UTILITY (6) ------ Makeshift Microdissipator Network Large Storage Unit Advanced Targeting Computer > --- WEAPON (4) ------- (None) > --- INVENTORY (15) --- Improved Gravmag System Antigrav System Gyrokinetic Inverter Gyrokinetic Inverter Gyrokinetic Inverter Gyrokinetic Inverter Gyrokinetic Inverter Hacking Suite System Shield A0-MCA's Component Scanner DRS Beacon (Ready) PL-3XN's Ring of Power Peak State ------------ > --- POWER ------------ Neutrino Core > --- PROPULSION ------- Experimental Biometal Leg Experimental Biometal Leg Experimental Biometal Leg Gyrokinetic Inverter Gyrokinetic Inverter Gyrokinetic Inverter > --- UTILITY ---------- Scrap Suit Large Storage Unit Experimental Terrain Scanner Advanced Targeting Computer Rainbow Chip > --- WEAPON ----------- Advanced Plasma Rifle Advanced Plasma Rifle Enhanced Gamma Bomb Array Enhanced Gamma Bomb Array > --- INVENTORY -------- Gyrokinetic Inverter Gyrokinetic Inverter Gyrokinetic Inverter Gyrokinetic Inverter Gyrokinetic Inverter Cooled Field Propulsion Drive Scrap Suit Improved Coolant Injector Matter Compressor A0-MCA's Component Scanner Enhanced Gauss Cannon Enhanced Gamma Bomb Array DRS Beacon PL-3XN's Ring of Power [Rating: 133] Favorites ----------- Power Neutrino Core Engine Subdweller Power Source Power Core Neutrino Core Reactor Light Antimatter Reactor Propulsion Compact Wheel Treads Light Treads Leg Experimental Biometal Leg Wheel Compact Wheel Hover Unit Gyrokinetic Inverter Flight Unit Cooled Field Propulsion Drive Utility Large Storage Unit Device Scrap Suit Storage Large Storage Unit Processor Advanced Targeting Computer Protection Light Armor Plating Weapon Improved Assault Rifle Energy Gun Advanced Plasma Rifle Ballistic Gun Improved Assault Rifle Ballistic Cannon Enhanced Gauss Cannon Launcher Enhanced Gamma Bomb Array Build | -11 -10 -10 -7 -5 ------- Run | Yrd Mat Sub Scr Fac Slots Evolved 10 | . . . . 10 Power . | . . . . . Propulsion 4 | . . . . 4 Utility 4 | . . . . 4 Weapon 2 | . . . . 2 Parts Attached 112 | 8 12 4 5 83 Power 14 | 1 2 1 1 9 Engine 6 | 1 1 1 1 2 Core 6 | . 1 . . 5 Reactor 2 | . . . . 2 Propulsion 37 | 3 4 . . 30 Treads 3 | . 3 . . . Leg 11 | . . . . 11 Wheel 4 | 3 1 . . . Hover 18 | . . . . 18 Flight 1 | . . . . 1 Utility 30 | 2 4 1 3 20 Device 20 | 1 1 1 . 17 Storage 4 | 1 2 . 1 . Processor 5 | . . . 2 3 Hackware . | . . . . . Protection 1 | . 1 . . . Artifact . | . . . . . Weapon 31 | 2 2 2 1 24 Energy Gun 5 | 1 . . . 4 Energy Cannon . | . . . . . Ballistic Gun 10 | 1 2 1 1 5 Ballistic Cannon 11 | . . 1 . 10 Launcher 5 | . . . . 5 Special Weapon . | . . . . . Impact Weapon . | . . . . . Slashing Weapon . | . . . . . Piercing Weapon . | . . . . . Special Melee Weapon . | . . . . . Unidentified Prototypes 6 | . 1 . . 5 Corrupted Parts 1 | . . . . 1 System Corruption 1 | . . . . 1 Parts Lost 53 | . 5 1 . 47 Power 7 | . 1 . . 6 Propulsion 20 | . 2 . . 18 Utility 8 | . 1 . . 7 Weapon 18 | . 1 1 . 16 Highest Loss Streak 10 | . 2 1 . 10 To Critical Strikes 1 | . . . . 1 Average Backups 12 | 2 13 14 11 11 Power . | . . . . . Propulsion 2 | 2 3 3 1 3 Utility 4 | . 4 6 4 4 Weapon 4 | . 6 4 4 3 Tool/Special . | . . . . . Unused Backups 29 | . 3 6 9 11 Power 1 | . . . 1 . Propulsion 12 | . 2 1 5 4 Utility 10 | . . 2 1 7 Weapon 5 | . 1 3 1 . Tool/Special 1 | . . . 1 . Average Slot Usage (%) 87 | . 94 100 95 77 Engine 5 | . 12 1 12 . Core 2 | . . 12 . 3 Treads 3 | . 16 . . . Leg 5 | . . . . 11 Wheel 11 | . 11 28 26 . Hover 8 | . . . . 17 Device 7 | . 8 12 . 8 Storage 9 | . 14 14 13 4 Processor 5 | . . . 1 11 Protection 3 | . . 1 12 . Energy Gun 1 | . 1 . . 2 Ballistic Gun 13 | . 26 16 17 5 Ballistic Cannon 6 | . . 11 9 6 Peak Build Rating 133 | 10 14 17 36 133 Average Rating 52 | 6 11 15 17 95 On Entrance 14 | . 10 14 15 33 Naked Turns . | . . . . . Heaviest Build 91 | 13 33 34 39 91 Greatest Support 129 | 26 40 32 32 129 Greatest Overweight (x) 2 | . 1 1 1 2 Average Overweight (x) . | . . . . . Largest Inventory Capacity 15 | 8 15 15 15 15 Average Capacity 14 | 7 14 15 15 15 Most Carried 15 | 8 15 15 15 15 Average Carried 13 | 2 13 14 13 14 Final Capacity 15 | 8 15 15 15 15 Final Carried 15 | 8 15 15 15 15 Class Distribution -------------------- 60% | Mutant 20% | Gunner 16% | Scavenger-Gunner Dominant Class ---------------- Mutant | -10/Materials Mutant | -10/Subcaves Mutant | -7/Scraptown Gunner | -5/Factory Resources | -11 -10 -10 -7 -5 ----------- Run | Yrd Mat Sub Scr Fac Matter Collected 6674 | 296 845 144 30 5359 Remotely . | . . . . . Salvage Created 4940 | 173 1048 142 . 3577 Parts 232 | 16 60 8 . 148 Haulers Intercepted 3 | . 2 . . 1 Recyclers Shooed 5 | 1 1 . . 3 Parts Field Recycled . | . . . . . Retrieved Matter . | . . . . . Parts Self-Destructed 8 | . . 8 . . Prevented . | . . . . . Kills | -11 -10 -10 -7 -5 ------- Run | Yrd Mat Sub Scr Fac Combat Hostiles Destroyed 77 | . 17 3 . 57 Guns 35 | . 17 . . 18 Cannons 30 | . . 3 . 27 AOE 8 | . . . . 8 Classes Destroyed 19 | 2 8 . . 9 Worker 5 | . 3 . . 2 Builder 9 | . 1 . . 8 Tunneler 4 | 4 . . . . Hauler 3 | . 2 . . 1 Recycler 7 | 1 3 . . 3 Mechanic 3 | . . . . 3 Operator 2 | . 1 . . 1 Watcher 4 | . 2 . . 2 Swarmer 9 | . 3 . . 6 Cutter 1 | . . . . 1 Grunt 38 | . 13 2 . 23 Brawler 2 | . . . . 2 Duelist 2 | . . . . 2 Protector 1 | . . . . 1 Sentry 2 | . . . . 2 Specialist 1 | . . . . 1 Hunter 9 | . . . . 9 Programmer 10 | . . . . 10 Subdweller 2 | . 1 1 . . Best Kill Streak 9 | 4 5 2 . 9 Combat Bots Only 8 | . 3 2 . 8 Max Kills in Single Turn 3 | 1 1 1 . 3 Gunslinging . | . . . . . Exploded 1 | . . . . 1 Melee . | . . . . . Uniques/NPCs Destroyed . | . . . . . Combat | -11 -10 -10 -7 -5 -------- Run | Yrd Mat Sub Scr Fac Hostile Shots Fired 758 | . 80 8 . 670 Missed 217 | . 18 3 . 196 Hits 541 | . 62 5 . 474 Melee 24 | . . . . 24 Projectile 517 | . 62 5 . 450 AOE 1 | . . . . 1 Critical Strikes 22 | . . . . 22 Part Disruptions 3 | . . . . 3 Damage Taken 10490 | . 913 166 . 9411 Core 1177 | . 131 26 . 1020 Absorbed by Shields . | . . . . . Regen/Repaired (Parts) 151 | . . . . 151 Core Remaining (%) 68 | 100 . . 37 . Volleys Fired 343 | 8 86 14 . 235 Largest 4 | 2 2 2 . 4 Hottest 311 | 60 60 56 . 311 Shots Fired 782 | 16 172 22 . 572 Gun 490 | 16 172 8 . 294 Cannon 268 | . . 14 . 254 Launcher 24 | . . . . 24 Special . | . . . . . Kinetic 672 | 8 169 22 . 473 Thermal 75 | . . . . 75 Explosive 9 | . . . . 9 Electromagnetic 26 | 8 3 . . 15 Robot Hit Streak 20 | 3 12 5 . 20 Robot Miss Streak 7 | 1 4 3 . 7 Penetration Max 1 | . . . . 1 Secondary Targets 5 | . 1 . . 4 Max Gunslinging Chain 1 | . 1 . . 1 Shots Hit Robots 486 | 9 118 9 . 350 Core Hits 256 | 6 47 4 . 199 Critical Kills 2 | . 1 . . 1 Critical Parts Destroyed 5 | . 1 . . 4 Critical Strikes 37 | . 2 2 . 33 Burn 6 | . . . . 6 Destroy 7 | . 2 . . 5 Blast 24 | . . 2 . 22 Melee Attacks . | . . . . . Impact . | . . . . . Slashing . | . . . . . Piercing . | . . . . . Sneak Attacks . | . . . . . Combat Hostiles . | . . . . . Follow-up Attacks . | . . . . . Damage Inflicted 14103 | 138 1784 156 . 12025 Guns 6197 | 138 1783 65 . 4211 Cannons 5405 | . . 91 . 5314 Explosions 2500 | . . . . 2500 Melee . | . . . . . Ramming 1 | . 1 . . . Kinetic 10129 | 73 1734 156 . 8166 Thermal 1606 | . . . . 1606 Explosive 519 | . . . . 519 Electromagnetic 1848 | 65 49 . . 1734 Impact . | . . . . . Slashing . | . . . . . Piercing . | . . . . . Highest Corruption 28 | . . . . 28 Average Corruption 14 | . . . . 14 Corruption Purged . | . . . . . Corruption Blocked . | . . . . . Effects 97 | . . . . 97 Message Errors 22 | . . . . 22 Matter Fused 21 | . . . . 21 Heat Flow Errors 7 | . . . . 7 Energy Discharges 9 | . . . . 9 Parts Rejected 5 | . . . . 5 Data Loss (minor) 6 | . . . . 6 Data Loss (major) 6 | . . . . 6 Misfires 2 | . . . . 2 Alerts 1 | . . . . 1 Misdirections 7 | . . . . 7 Weapon Failures 11 | . . . . 11 Overload Shots . | . . . . . Overflow Damage 148 | . . . . 148 Projectiles 108 | . . . . 108 Explosions 40 | . . . . 40 Melee . | . . . . . Knockbacks 44 | . . . . 44 Impact . | . . . . . Kinetic 44 | . . . . 44 Secondary . | . . . . . Self-Inflicted Damage 49 | . . . . 49 Shots 3 | . . . . 3 Rammed 1 | . 1 . . . Targets Rammed 1 | . 1 . . . Kicked . | . . . . . Crushed . | . . . . . Highest Temperature 416 | 20 10 . . 416 Average Temperature 98 | 20 3 . . 103 Received Heat Transfer 1341 | . 402 42 . 897 Effects 1 | . . . . 1 Interference 1 | . . . . 1 Siege Activations . | . . . . . Martial Activations . | . . . . . Shielding Activations . | . . . . . Robots Disrupted 1 | . . . . 1 Combat Hostiles 1 | . . . . 1 Robots Corrupted 3 | . . . . 3 Combat Hostiles 3 | . . . . 3 Parts Fried 4 | . . . . 4 Impact Corruptions . | . . . . . Robots Melted 1 | . . . . 1 Combat Hostiles 1 | . . . . 1 Parts Melted 12 | . . . . 12 Heat Transferred 3187 | . . . . 3187 Parts Sabotaged 6 | . . . . 6 Parts Stolen . | . . . . . Parts Stripped . | . . . . . Power Chain Reactions 6 | . . . . 6 Alert | -11 -10 -10 -7 -5 ------- Run | Yrd Mat Sub Scr Fac Maximum Alert Level 5 | . . . . 5 Low Security (%) 38 | 100 100 . . 11 Level 1 8 | . . . . 12 Level 2 . | . . . . 1 Level 3 9 | . . . . 14 Level 4 25 | . . . . 35 Level 5 8 | . . . . 11 High Security 8 | . . . . 12 Max Security . | . . . . . Peak Influence 2120 | 10 168 . . 2120 Initial 3 | . 3 . . . Average 796 | 2 72 . . 1115 Influence Increases 3883 | 25 529 50 . 3279 Destroy 0b10 Robot/C 1980 | . 320 40 . 1620 Destroy 0b10 Robot/NC 200 | 25 60 . . 115 Destroy Leader 376 | . 88 10 . 278 Allied During Kill 269 | . . . . 269 Trap Triggered on 0b10 20 | . 20 . . . Successful Hack 73 | . 9 . . 64 Select Force Hacks 30 | . 30 . . . Disable Machine 195 | . . . . 195 Destroy Structure 410 | . 2 . . 408 Lose Combat Pursuer 330 | . . . . 330 Influence Decreases 1835 | 20 409 175 . 1231 Entered New Map 63 | . 2 61 . . Time Decay 1092 | 20 357 114 . 601 Lost Part 520 | . 50 . . 470 Lost Ally 160 | . . . . 160 Squads Dispatched 32 | . 5 . . 27 Investigation 5 | . 4 . . 1 Extermination 4 | . . . . 4 Reinforcement 9 | . 1 . . 8 Assault 11 | . . . . 11 Garrison 3 | . . . . 3 Intercept . | . . . . . Searches Triggered . | . . . . . Construction Impeded 2 | . . . . 2 Haulers Reinforced . | . . . . . Active Scanning Responses . | . . . . . Cargo Convoy Interrupts 1 | . . . . 1 Stealth | -11 -10 -10 -7 -5 --------- Run | Yrd Mat Sub Scr Fac Distress Signals 6 | . 3 . . 3 Communications Jammed . | . . . . . Distress Signals . | . . . . . Times Spotted 166 | . 30 7 . 129 Peak Tracking Total 12 | . 5 2 . 12 Tactical Retreats 9 | . . . . 9 Traps | -11 -10 -10 -7 -5 ------- Run | Yrd Mat Sub Scr Fac Traps Triggered 4 | . 3 1 . . Indirectly . | . . . . . Trap Hack Attempts . | . . . . . Triggered . | . . . . . Disarmed . | . . . . . Reprogrammed 3 | . 3 . . . Reused 2 | . 2 . . . Traps Extracted . | . . . . . Installed . | . . . . . Triggered 2 | . 2 . . . Machines | -11 -10 -10 -7 -5 ---------- Run | Yrd Mat Sub Scr Fac Machines Disabled 14 | . . 1 . 13 Max in Single Turn 2 | . . 1 . 2 Machines Repaired . | . . . . . Machines Dismantled . | . . . . . Machines Sabotaged . | . . . . . Overloaded Fab Kills . | . . . . . Hacking | -11 -10 -10 -7 -5 --------- Run | Yrd Mat Sub Scr Fac Machines Accessed 16 | . 7 1 2 6 Terminals 9 | . 5 . . 4 Fabricators 1 | . . . . 1 Repair Stations . | . . . . . Recycling Units 3 | . 2 . . 1 Scanalyzers . | . . . . . Garrison Access . | . . . . . Total Hacks 54 | . 17 9 13 15 Successful 34 | . 6 9 13 6 Failed 20 | . 11 . . 9 Catastrophic 3 | . 1 . . 2 Database Lockouts . | . . . . . Manual 21 | . 13 . . 8 Terminals 23 | . 14 . . 9 Fabricators 3 | . . . . 3 Repair Stations . | . . . . . Recycling Units 6 | . 3 . . 3 Scanalyzers . | . . . . . Garrison Access . | . . . . . Terminal Hacks 25 | . 2 9 13 1 Record 21 | . . 8 13 . Robot Analysis 1 | . 1 . . . Branch Access Points 1 | . . . . 1 Reprogram Traps 1 | . 1 . . . Proto ID Catalog 1 | . . 1 . . Fabricator Hacks 1 | . . . . 1 Network Status 1 | . . . . 1 Repair Station Hacks . | . . . . . Recycling Unit Hacks 1 | . 1 . . . Retrieve Components 1 | . 1 . . . Scanalyzer . | . . . . . Garrison Access Hacks . | . . . . . Unauthorized Hacks 7 | . 3 . . 4 Terminals 5 | . 2 . . 3 Botnet 5 | . 2 . . 3 Fabricators . | . . . . . Repair Stations . | . . . . . Recycling Units 2 | . 1 . . 1 Tunnel 1 | . 1 . . . Scrapoids 1 | . . . . 1 Scanalyzers . | . . . . . Garrison Access . | . . . . . Data Cores Recovered . | . . . . . Used . | . . . . . Hacking Detections 12 | . 6 . . 6 Full Trace Events . | . . . . . Feedback Events . | . . . . . Feedback Blocked . | . . . . . Robot Schematics Acquired . | . . . . . Robots Built . | . . . . . Authchips . | . . . . . Time . | . . . . . Total Robot Build Rating . | . . . . . Part Schematics Acquired . | . . . . . Parts Built . | . . . . . Authchips . | . . . . . Time . | . . . . . Total Part Build Rating . | . . . . . Parts Repaired . | . . . . . Time . | . . . . . Parts Recycled . | . . . . . Recycled Matter . | . . . . . Retrieved Matter . | . . . . . Retrieved Components 6 | . 6 . . . Parts Scanalyzed . | . . . . . Part Schematics Acquired . | . . . . . Parts Damaged . | . . . . . Bothacking | -11 -10 -10 -7 -5 ------------ Run | Yrd Mat Sub Scr Fac Used RIF Installer . | . . . . . Robots Hacked . | . . . . . Non-combat . | . . . . . Combat . | . . . . . Robot Hacks Applied . | . . . . . Relay Couplers Released . | . . . . . Fabnet Peak Effective % . | . . . . . Robots Rewired . | . . . . . Allies Hacked . | . . . . . Hacks Repelled . | . . . . . Allies | -11 -10 -10 -7 -5 -------- Run | Yrd Mat Sub Scr Fac Total Allies 10 | . . . . 10 Largest Group 5 | . . . . 5 Highest-Rated Group 238 | . . . . 238 Highest-Rated Ally 50 | . . . . 50 Total Orders 2 | . . . . 2 STAY 1 | . . . . 1 FOLLOW 1 | . . . . 1 Ally Attacks 191 | . . . . 191 Total Damage 3518 | . . . . 3518 Kills 29 | . . . . 29 Allies Corrupted 1 | . . . . 1 Allies Melted . | . . . . . Intel | -11 -10 -10 -7 -5 ------- Run | Yrd Mat Sub Scr Fac Active Infowar (turns) 2711 | 56 631 491 124 1409 IFF 216 | . . . . 216 Terrain 1019 | 56 31 491 . 441 Structural 600 | . 600 . . . Decoding 1092 | . . . 124 968 Robot Analysis Total 1 | . 1 . . . Derelict Logs Recovered 5 | . . . 5 . Drone Launches . | . . . . . Drone Recoveries . | . . . . . Decoded 0b10 Intel 61 | . . . . 61 Items 61 | . . . . 61 Exploration | -11 -10 -10 -7 -5 ------------- Run | Yrd Mat Sub Scr Fac Turns Passed 5579 | 97 1038 549 1300 2595 Spaces Moved 3974 | 64 567 459 1123 1761 Core 4 | 4 . . . . Treads 283 | . 283 . . . Legs 822 | . . . . 822 Wheels 2006 | 60 284 459 1123 80 Hover 859 | . . . . 859 Flight . | . . . . . Fastest Speed 32 | 50 80 100 100 32 Average Speed 100 | 84 128 101 113 84 Slowest Speed 250 | 100 240 115 115 250 Overloaded Moves . | . . . . . Propulsion Burnouts . | . . . . . Robots Hopped . | . . . . . Potential Cave-ins . | . . . . . Cave-ins Triggered . | . . . . . Exploration Rate (%) 41 | 3 80 24 76 24 Regions Visited 4 Branch Regions 2 Pre-discovered Areas 2 | . 1 . 1 . Known Exits Taken . | . . . . . Unknown Exits Taken 4 | 1 1 1 1 . Scrap Searched 6 | . . 3 3 . Spaces Dug 2 | . . . . 2 Terrain Destroyed 160 | . . . . 160 Melee . | . . . . . Projectile 102 | . . . . 102 AOE 58 | . . . . 58 Terrain Rammed . | . . . . . Walls Destroyed . | . . . . . Machines Disabled . | . . . . . Actions | -11 -10 -10 -7 -5 --------- Run | Yrd Mat Sub Scr Fac Total 4861 | 86 705 522 1152 2396 Wait 214 | . 8 19 . 187 Move 3970 | 63 566 458 1122 1761 Hop . | . . . . . Pick Up 78 | 7 16 13 10 32 Fast Attach 81 | 7 4 . 2 68 Attach 32 | . 3 1 . 28 Detach 21 | . 1 . 2 18 Swap 41 | 1 8 4 3 25 Drop 79 | . 12 13 13 41 Fire 343 | 8 86 14 . 235 Melee . | . . . . . Ram 1 | . . . . 1 Kick . | . . . . . Crush 1 | . 1 . . . Escape Stasis . | . . . . . Rewire . | . . . . . Trap . | . . . . . Miscellaneous . | . . . . . Route ------- -11/Scrapyard -10/Materials (discovered 5 exits: [*Mat x2] / [*Min x2] / *Sub) -10/Subcaves -7/Scraptown -5/Factory (discovered 3 exits: Fac / Upp x2) History --------- Turn | Location | Event 36 | -11/Scrapyard | Discovered new exit (range 14) 98 | -11/Scrapyard | Entered Materials 202 | -10/Materials | Discovered new exit (range 16) 319 | -10/Materials | Build established: Mutant 447 | -10/Materials | Discovered new exit (range 12) 635 | -10/Materials | Discovered new exit (range 6) 664 | -10/Materials | Discovered new exit (range 8) 698 | -10/Materials | Derelicts attacked the area 918 | -10/Materials | Core integrity fell below 50% 979 | -10/Materials | Discovered new exit (range 12) 1136 | -10/Materials | Entered Subcaves 1137 | -10/Subcaves | Approached by a straggling Scientist 1156 | -10/Subcaves | Shifting Twisted Machinery released Sub. Machine Gun 1211 | -10/Subcaves | Shifting Twisted Machinery released Battle Cannon 1287 | -10/Subcaves | Scientist uncovered a shortcut to Scraptown 1504 | -10/Subcaves | Visited 4L-MR0's lab 1518 | -10/Subcaves | Found Rainbow Chip 1685 | -10/Subcaves | Entered Scraptown 1731 | -7/Scraptown | Visited Cave Peace 1775 | -7/Scraptown | Scanned Subdweller tech in exchange for log data 1777 | -7/Scraptown | Learned location of 1 exit from Factory 1779 | -7/Scraptown | Learned Factory stockpile data 1780 | -7/Scraptown | Learned location of 1 exit from Proximity Caves 1781 | -7/Scraptown | Learned location of Zion (-7) 1783 | -7/Scraptown | Learned Factory trap positions 1848 | -7/Scraptown | Visited UFD Registry 1848 | -7/Scraptown | Registered with UFD as "Nanosplitter" 1864 | -7/Scraptown | Visited Shadow of the Wyrm 2099 | -7/Scraptown | Heard Great Nut preacher, LISTEN AND RECITE! 2159 | -7/Scraptown | Visited Symbiants 2196 | -7/Scraptown | Visited Spacefarers 2321 | -7/Scraptown | Visited Chapter 10 2358 | -7/Scraptown | Visited Curators Association 2376 | -7/Scraptown | Visited LU-1G1's Boring Crew 2396 | -7/Scraptown | Visited Supply Room 2417 | -7/Scraptown | Visited Cartography Club 2449 | -7/Scraptown | Visited Scrapoid Pod Storage 2455 | -7/Scraptown | Found Scrapoid Pod 2474 | -7/Scraptown | Visited Infowarlord's Domain 2506 | -7/Scraptown | Visited Scrapoid Research Area 2537 | -7/Scraptown | Delivered Scrap Shield to a Scientist 2651 | -7/Scraptown | Visited A0-MCA Data Center 2659 | -7/Scraptown | Given a B+ rating by A0-MCA 2673 | -7/Scraptown | Found A0-MCA's Component Scanner 2696 | -7/Scraptown | Visited Derelict Rescue Squad 2704 | -7/Scraptown | Found DRS Beacon 2835 | -7/Scraptown | Attached Rainbow Chip, gained temporary slots: Power, Propulsion, Utility, Weapon 2915 | -7/Scraptown | Met Optimus 2915 | -7/Scraptown | Accepted into 0bPrime 2966 | -7/Scraptown | Found Scrap Suit 2981 | -7/Scraptown | Discovered new exit (range 3) 2985 | -7/Scraptown | Entered Factory 2985 | -5/Factory | Evolved 10 slots: Propulsion x4, Utility x4, Weapon x2 2986 | -5/Factory | Identified exit to Factory 2987 | -5/Factory | Loaded intel: 104 trap records 3285 | -5/Factory | Build established: Gunner 3486 | -5/Factory | Identified exit to Upper Caves 3606 | -5/Factory | Scrapoids reinforcements arrived? 3614 | -5/Factory | Garrison activated, responded to threat 3784 | -5/Factory | Scrapoid Pod released 05F12-D (x5) 3784 | -5/Factory | Lost 3 allies 3850 | -5/Factory | Found Scrap Suit 3903 | -5/Factory | Cargo convoy interrupted 3942 | -5/Factory | Lost 3 allies 3944 | -5/Factory | Lost 4 parts (1p1n2w) 4085 | -5/Factory | Lost 10 parts (3n3u4w) 4114 | -5/Factory | Found Scrap Suit 4118 | -5/Factory | Found Prototype Launcher 4118 | -5/Factory | Identified Enh. Gamma Bomb Array 4123 | -5/Factory | Found PL-3XN's Ring of Power 4235 | -5/Factory | Build established: Scavenger-Gunner 4240 | -5/Factory | Found Enh. Gamma Bomb Array 4351 | -5/Factory | System corruption reached 10% 4382 | -5/Factory | Lost 4 parts (2p1n1w) 4531 | -5/Factory | Found Enh. Gamma Bomb Array 4536 | -5/Factory | Found Exp. Terrain Scanner 4625 | -5/Factory | Found Scrap Suit 4776 | -5/Factory | Core integrity fell below 50% 4785 | -5/Factory | First assault squad dispatched 4827 | -5/Factory | Build established: Gunner 4925 | -5/Factory | Found Scrap Suit 5108 | -5/Factory | Lost 7 parts (1p2n1u3w) 5267 | -5/Factory | High security lockdown imminent 5347 | -5/Factory | High security lockdown engaged 5488 | -5/Factory | Core integrity fell below 20% 5526 | -5/Factory | Lost 5 parts (1p2n1u1w) 5539 | -5/Factory | Destroyed 8 combat bots 5580 | -5/Factory | Destroyed by G-67 Veteran with Plasma Rifle Last Messages --------------- 05567_ G-50 Soldier knocked back. 05568_ P-70 Sage resets P-70 Sage, system corruption cleaned. 05569_ System corrupted: Adv. Heat Sink rejected. 05570_ P-70 Sage resets L-41 Fighter, system corruption cleaned. 05570_ L-41 Fighter knocked back. 05572_ Enh. Gauss Cannon destroyed. 05573_ L-41 Fighter knocked back. 05576_ P-70 Sage resets I-47 Archangel, system corruption cleaned. 05577_ Enh. Gauss Cannon destroyed. 05577_ Carbon-fiber Leg destroyed. 05577_ Penetrated by Slug. 05578_ Carbon-fiber Leg destroyed. 05578_ Scrap Suit destroyed. 05579_ Lgt. Angular Momentum Engine destroyed. 05580_ Gauss Cannon destroyed. 05580_ P-70 Sage resets Y-64 Sentinel, system corruption cleaned. Map ----- +----------------------------------------------------+ | ???????????????????????????????????#?????????????? | | ?????????????????????"???????????????????????????? | | ???????????????????????"????????????#????????????? | | ???"?????????????#????????????????#??????????????? | | ?????"???????????????"????????? ?????? ??????????? | | ????????????????#????????????????????#????????"??? | | ?????????????????#???????????????????????????????? | | ?????????????????#????????????"?? ???????????????? | | ???????????????????? ??????????????????????"?????? | | ?????????????????????????????"?? ?#??????????????? | | ?????"????????? ??????????????????????? ??"??"??? | | ?????????"?????????????""????"????#???????????? ?? | | ????? ?? ?????? ??#???"""??? ????????#?? ????????? | | ????????????????;#??? ????????????????????????? | | ???????????#????#;####;"###????? ????#????? ?????? | | ?????????????????? # ###???#??????????? ???? | | ????????????^????##; "" ??????????? ???? ????? | | ??????? ???????? ?"% T" ????????????? ???? ?? | | ?????????????? ??### ????? ??????????#???? | | ?????#?????? ????# ; ";#####????????????#????? | | ??????#??????#??###;; ## ;;;;###??????#????#???? | | ????????????????? # * Y #? ??? ??#?#?#??? | | ??????#???????????? w%=% [! %% #? ????????#????? | | ???????????????""???# %%%%= ] #? ????????^^? | | ??????#?????"" """ # ! *%!%[[%* ##?"???#???^?? | | ???????#?? ; *@=%%! %#? ?????????? | | ???????#?? # %plgp!! #??????????^?? | | ??? ?#??? ?????? ?# %;!g= ##?"?? ??#????" | | ?????????##?+???????# %pi g= = #??"?" ???^ ??" | | ????#??#?????#????# ; %% %%! #??"??????????" | | ?? ????#?? #?##?### ##########??"?"???????? | | ??? ?###### ######## #???????#? ^?"" | | ????? #######????? ??" | | ???? [ ????????? | | ????? [ ^ ????????? | | ????????##########+#;## ??? ???? ! | | ???????????????????##?# """" ####?????#+##??# | | #????##??????????" ?#?# """" #????#?# ??# | | ??#??##???????????????#^ """" #????????""""?## | | ?#?????#???"?? "??????#! *"""" #??????# """" #"! | | ???#???????? ????????# """" ######## """" #" | | ??###??????"?? ??? #??# """" ### """" "=/ | | ???#????? ?""????"????# "" " ### "[ | | ?#?????#? ???????? #?## #?######""" | | ????????? ?????????#?## ^ ####???## " | | ???#???????"???????#??# #??#?###+ | | ??#??????????? ?"???#?#^ ########! | | ???????? "???"??????# ^ ## | | ?????????????????? #### + | | ?#????############## ! """" ## | +----------------------------------------------------+ Best States ------------- Heat Dissipation 67 Coolant Potential 80 Energy Generation 32 Energy Capacity 370 Matter Stores 300 Matter Capacity 300 Sight Range 16 Terrain Scan Range 30 Terrain Scan Density 10 Armor Coverage 150 Evasion (%) 58 Targeting Accuracy 16 Recoil Reduction 2 Item Schematics ----------------- None Robot Schematics ------------------ None Fabricated ------------ Nothing Repaired ---------- Nothing Alien Tech Used ----------------- None Achievements -------------- None Challenges ------------ None Game ------ Seed PitchforkTerrorArmor Manual? 0 Play Time 01:36:06 Cumulative 240.1 hours Start 2025.05.26 @ 03:48:48 End 2025.05.26 @ 05:31:23 Sessions 1 Manual Loads 0 Difficulty Rogue Special Mode None Game No. 145 Rogue 145 Adventurer 0 Explorer 0 Win Type - Total 3 Types 1/0/1/1/0/0/0/0/0/0 Lore% 78 Gallery% 64 Achievement% 63 Wizard Run 0 Options --------- Layout 2 ASCII 0 Keyboard 1 Movement Vi Keybinds 0 Fullscreen 1 Font 16/SmallcapsGlow Map View 55x47 Zoom Use 0% Tactical HUD 1 Map Filters NONE Filters NONE Steam 0 RUN: 1f54ee9e-10e8-4e9b-83fe-058490a5bf04